[Event "Bangabandhu Premier Div League 2023-24"]
[Site "Dhaka"]
[Date "2024.02.05"]
[Round "5.1"]
[White "Hossain, Enamul"]
[Black "Sanket Chakravarty"]
[Result "1-0"]
[ECO "B45"]
[WhiteElo "2372"]
[BlackElo "2361"]
[Annotator "TA"]
[PlyCount "49"]
[EventDate "2024.02.01"]
[EventCountry "BAN"]
[SourceTitle "playchess.com"]
[Source "ChessBase"]
[SourceQuality "1"]
[TimeControl "40/5400+30:1800+30"]

{[%evp 23,49,29,31,35,37,28,34,40,37,38,30,9,16,26,8,0,336,351,372,333,328,332,334,339,339,342,360,354]} 1. e4 {[%emt 0:00:06]} c5 {[%emt 0:00:14]} 2. Nf3 {[%emt 0:00:11]} e6 {[%emt 0:00:12]} 3. d4 {[%emt 0:00:23]} cxd4 {[%emt 0:00:11]} 4. Nxd4 {[%emt 0:00:08]} Nf6 {[%emt 0:00:08]} 5. Nc3 {[%emt 0:00:15]} Nc6 {[%emt 1:32:15]} 6. Ndb5 {[%emt 0:01:09]} Bb4 {[%emt 0:00:00]} 7. a3 {[%emt 1:31:48]} Bxc3+ {[%emt 0:01:00]} 8. Nxc3 {[%emt 0:00:00]} d5 {[%emt 0:00:00]} 9. exd5 {[%emt 0:00:00]} exd5 {[%emt 0:00:00]} 10. Bd3 {[%emt 0:00:00]} O-O {[%emt 0:00:00]} 11. O-O {[%emt 0:00:00]} Bg4 {[%emt 0:02:00]} 12. f3 {[%emt 0:00:00]} Bh5 {[%emt 0:00:00]} 13. Bg5 {[%emt 0:00:00]} Qb6+ {[%emt 0:00:00]} 14. Kh1 {[%emt 0:00:00] [#] Black must now prevent Bxf6. Active counter play!} Ne4 {[%emt 0:00:00]} 15. Nxe4 {[%emt 0:00:00] White is slightly better.} dxe4 {[%emt 0:00:00]} 16. Bxe4 {[%emt 0:00:00]} Qxb2 {[%emt 0:00:00]} 17. Qd6 {[%emt 0:05:00][%cal Of1b1] Threatening Rfb1!} (17. Qb1 {simplifies} Qxb1 18. Rfxb1 Bg6 19. Bxg6 hxg6 20. Rxb7 Rfc8 21. Bd2) 17... Bg6 {[%emt 0:00:00]} 18. Rab1 {[%emt 0:00:30][%cal Ba1b1,Bb1e1,Be1d1][%mdl 32]} Qc3 {[%emt 0:03:30]} 19. Bd5 {[%emt 0:00:30]} Rad8 $2 {[%emt 0:00:30][%mdl 8192]} 20. Bxd8 $18 {[%emt 0:00:00]} Rxd8 {[%emt 0:00:30] [#]} 21. Rbe1 $1 {[%emt 0:01:00] White threatens Qxd8+ and mate.} Qf6 {[%emt 0:00:00]} ({Inferior is} 21... Rxd6 22. Re8#) 22. Qxf6 {[%emt 0:00:00]} gxf6 {[%emt 0:01:00]} 23. Bxc6 {[%emt 0:00:00]} bxc6 {[%emt 0:00:00]} 24. Rd1 {[%emt 0:00:00]} Re8 {[%emt 0:00:00]} 25. Rfe1 {[%emt 0:00:00] Weighted Error Value: White=0.08 (flawless) /Black=0.48.  Loses game:     	---       	Black=1      OK:         	White=7     	Black=4      Best:        	White=1     	---} 1-0

[Event "Bangabandhu Premier Div League 2023-24"]
[Site "Dhaka"]
[Date "2024.02.05"]
[Round "5.1"]
[White "Alam, Monjur"]
[Black "Pranav Vijay"]
[Result "0-1"]
[ECO "A61"]
[WhiteElo "1875"]
[BlackElo "2252"]
[Annotator "TA"]
[PlyCount "70"]
[EventDate "2024.02.01"]
[EventCountry "BAN"]
[SourceTitle "playchess.com"]
[Source "ChessBase"]
[SourceQuality "1"]
[TimeControl "40/5400+30:1800+30"]

{[%evp 15,70,9,49,0,-1,-11,40,36,50,46,52,18,37,23,3,19,37,20,24,0,0,0,0,0,0,-70,20,22,22,25,9,9,29,18,61,74,72,66,77,0,0,0,0,-16,-29,-103,-107,-130,-49,-179,-163,-316,-308,-418,-407,-490,-504]} 1. d4 {[%emt 0:01:47]} Nf6 {[%emt 0:00:08]} 2. c4 {[%emt 0:00:16]} c5 {[%emt 0:00:08]} 3. d5 {[%emt 0:01:01]} e6 {[%emt 0:00:08]} 4. Nc3 {[%emt 0:00:54]} exd5 {[%emt 0:00:08]} 5. cxd5 {[%emt 0:00:51]} d6 {[%emt 0:00:08]} 6. Nf3 {[%emt 0:02:13]} g6 {[%emt 0:00:10]} 7. Bg5 {[%emt 0:01:30][%cal Bc1g5,Bg5h4,Bh4g3][%mdl 32]} Bg7 {[%emt 0:00:28]} 8. e3 {[%emt 0:07:01]} O-O {[%emt 0:00:26]} 9. Be2 {[%emt 0:01:03]} ({White should try} 9. Nd2 $14) 9... h6 $11 {[%emt 0:02:20]} 10. Bh4 {[%emt 0:01:22]} Bg4 {[%emt 0:01:16]} (10... g5 $11 11. Bg3 Nh5) 11. O-O {[%emt 0:01:31] White is slightly better.} Bxf3 {[%emt 0:02:22]} 12. Bxf3 {[%emt 0:00:17]} Nbd7 {[%emt 0:00:20]} 13. Bg3 {[%emt 0:02:45]} Qe7 {[%emt 0:00:49]} 14. Re1 {[%emt 0:02:03]} a6 {[%emt 0:01:48]} 15. a4 {[%emt 0:04:17]} Ne8 {[%emt 0:01:55]} 16. Qc2 {[%emt 0:05:50]} Rb8 {[%emt 0:03:27]} 17. a5 {[%emt 0:01:29]} Nc7 {[%emt 0:04:23]} 18. Rab1 {[%emt 0:03:23]} b6 {[%emt 0:03:44]} 19. axb6 {[%emt 0:07:16]} Rxb6 {[%emt 0:00:09]} 20. b4 {[%emt 0:09:29]} Rxb4 {[%emt 0:05:19]} (20... cxb4 21. Na4 (21. Na2 Nb5 $17) 21... Rc8 (21... Rb7 22. Qc6 $14) 22. Nxb6 Nxb6 23. Rxb4 (23. Qc6 Ncxd5 24. Qxd6 Qxd6 $17) 23... Ncxd5 24. Qe4 $14) (20... Bxc3 $1 $15 21. Qxc3 Rfb8) 21. Rxb4 {[%emt 0:00:23]} cxb4 {[%emt 0:00:02]} 22. Na2 {[%emt 0:00:17][%csl LRb4,LRc7][%cal Bc3a2,Ba2b4,Bb4c6][%mdl 32]} b3 {[%emt 0:15:01]} 23. Qxb3 {[%emt 0:01:59]} Rb8 {[%emt 0:04:11]} 24. Qc4 {[%emt 0:00:28]} Nc5 {[%emt 0:02:31]} 25. Nb4 {[%emt 0:02:15] Nc6 is the strong threat.} Qf6 {[%emt 0:00:24]} 26. Nc6 {[%emt 0:01:47]} Rb2 {[%emt 0:05:07]} 27. h3 {[%emt 0:01:58]} ({Better is} 27. h4 $16) 27... Nb5 {[%emt 0:03:15]} 28. e4 {[%emt 0:03:37] Hoping for e5.} Qc3 {[%emt 0:04:17]} 29. Qxc3 {[%emt 0:02:53]} Bxc3 {[%emt 0:00:08]} 30. Rc1 {[%emt 0:00:28]} (30. Ra1 $11) 30... Nb3 $17 {[%emt 0:00:43] Excellent horsemanship.} 31. Rd1 {[%emt 0:02:46] [#]} f6 {[%emt 0:00:43]} ({Black should play} 31... a5 $1 $17 {[%cal Ra5a4] And now ...a4 would win.} 32. Ne7+ (32. e5 $2 a4 $19) 32... Kf8) 32. Bg4 {[%emt 0:07:20] Now White is beyond hope.} (32. e5 $1 $15 Bxe5 (32... fxe5 33. Nxe5 dxe5 34. d6 $11) 33. Nxe5 fxe5 34. Bxe5 dxe5 35. d6) 32... a5 $36 {[%emt 0:02:04][%mdl 2048] Keeping White busy.} 33. Rd3 $2 {[%emt 0:05:36] [#]} (33. e5 {was worth a try.} fxe5 34. Nxe5 dxe5 (34... Bxe5 35. Bxe5 dxe5 36. d6 $15) 35. d6) 33... Nc5 $1 {[%emt 0:02:48][%csl LRd3,LRe4]} 34. Re3 {[%emt 0:03:01][%cal Og3d6]} a4 {[%emt 0:00:55]} 35. Bxd6 {[%emt 0:05:11] [#]} a3 $1 {[%emt 0:00:20] Weighted Error Value: White=0.38/Black=0.16 (very precise) .  Mistake:       	White=5     	Black=3      Inaccurate:     	White=2     	Black=1      OK:         	White=6     	Black=7      Best:        	White=1     	Black=5      Strong:       	---       	Black=1} 0-1

[Event "Bangabandhu Premier Div League 2023-24"]
[Site "Dhaka"]
[Date "2024.02.05"]
[Round "5.2"]
[White "Murshed, Niaz"]
[Black "Alekhya Mukhopadhyay"]
[Result "0-1"]
[ECO "A96"]
[WhiteElo "2363"]
[BlackElo "2184"]
[Annotator "TA"]
[PlyCount "72"]
[EventDate "2024.02.01"]
[EventCountry "BAN"]
[SourceTitle "playchess.com"]
[Source "ChessBase"]
[SourceQuality "1"]
[TimeControl "40/5400+30:1800+30"]

{[%evp 21,72,19,14,12,18,-6,0,-10,0,-41,0,-29,-23,-36,0,0,15,2,32,29,53,31,41,29,31,21,21,28,14,-26,0,-10,-25,-43,0,0,0,0,0,-4,37,0,0,-57,-24,-156,-156,-160,-167,-136,0,-1570,-1564]} 1. d4 {[%emt 0:01:29]} f5 {[%emt 0:00:12]} 2. g3 {[%emt 0:03:16]} Nf6 {[%emt 0:00:16]} 3. Bg2 {[%emt 0:00:06]} e6 {[%emt 0:00:13]} 4. Nf3 {[%emt 0:00:49]} Be7 {[%emt 0:00:27]} 5. O-O {[%emt 0:00:35]} O-O {[%emt 0:00:13]} 6. c4 {[%emt 0:01:08]} d6 {[%emt 0:00:26]} 7. Nc3 {[%emt 0:02:07]} Ne4 {[%emt 1:32:13]} 8. Qc2 {[%emt 0:01:06]} Nxc3 {[%emt 0:00:00]} 9. Qxc3 {[%emt 0:00:04]} a5 {[%emt 0:00:00]} 10. b3 {[%emt 0:06:13]} Nc6 {[%emt 0:00:00]} 11. Bb2 {[%emt 0:01:49]} Bf6 {[%emt 0:00:00]} 12. Qd2 {[%emt 0:13:12]} e5 {[%emt 0:00:00]} 13. d5 {[%emt 0:01:04]} Ne7 {[%emt 0:00:00]} 14. Ne1 {[%emt 0:00:14] The position is equal.} f4 {[%emt 0:00:00]} 15. Be4 {[%emt 0:03:54]} Bf5 {[%emt 0:00:00]} 16. Qd3 {[%emt 0:01:40]} Qd7 {[%emt 0:00:00]} 17. Nf3 {[%emt 0:02:32]} g5 {[%emt 0:00:00]} 18. Nd2 {[%emt 0:04:46]} b6 {[%emt 0:00:00]} 19. Bxf5 {[%emt 0:05:24]} Nxf5 {[%emt 0:00:00]} (19... Qxf5 {simplifies} 20. Qxf5 Nxf5 21. g4 Nd4) 20. Ne4 {[%emt 0:00:12]} Nh6 {[%emt 0:00:00]} 21. Kg2 {[%emt 0:10:53][%cal Oh2h4]} Be7 {[%emt 0:00:00]} 22. Bc3 {[%emt 0:14:01]} Rf7 {[%emt 0:00:00]} 23. f3 {[%emt 0:05:55]} Nf5 {[%emt 0:00:00]} 24. Bd2 {[%emt 0:00:07] Wards off Ne3+} h5 {[%emt 0:00:00]} 25. e3 {[%emt 0:02:53][%cal Re3f4]} Rg7 {[%emt 0:00:00]} 26. Rf2 {[%emt 0:06:16]} Rf8 {[%emt 0:00:00]} 27. Raf1 {[%emt 0:00:17]} Kf7 {[%emt 0:00:00]} 28. Kh1 {[%emt 0:03:55]} fxg3 {[%emt 0:00:00]} 29. hxg3 {[%emt 0:09:03]} Ke8 {[%emt 0:00:00]} (29... Nxg3+ $2 30. Nxg3 Ke8 (30... Qh3+ $2 31. Rh2 $18) 31. Nxh5 $18) 30. Rh2 {[%emt 0:00:30][%cal Od2e1]} Bd8 {[%emt 0:11:30]} ({But not} 30... h4 $6 31. g4 $16) 31. Kg2 {[%emt 0:00:30]} Qf7 {[%emt 0:00:30]} 32. Qe2 {[%emt 0:00:30]} (32. Be1 $11) 32... Qg6 {[%emt 0:00:00]} 33. Qd3 (33. Kg1 $1 $11 {remains equal.}) 33... g4 $17 {[%emt 0:01:00]} 34. f4 {[%emt 0:01:00]} h4 {[%emt 0:00:30]} 35. Be1 {[%emt 0:00:30]} Rh7 {[%emt 0:00:00]} (35... hxg3 $17 36. Bxg3 exf4 (36... Kd7 37. fxe5 dxe5 38. d6 $11) 37. Bxf4 g3) 36. Nf2 $2 {[%mdl 8192] [#]} (36. fxe5 $11 hxg3 37. Bxg3 Rxh2+ 38. Kxh2) 36... hxg3 {[%emt 0:00:00] Weighted Error Value: White=0.38/Black=0.19 (very precise) .  Loses game:     	White=1     	---        Mistake:       	White=2     	Black=1      Inaccurate:     	White=4     	Black=6      OK:         	White=3     	Black=9      Best:        	White=1     	Black=3} 0-1

[Event "Bangabandhu Premier Div League 2023-24"]
[Site "Dhaka"]
[Date "2024.02.05"]
[Round "5.2"]
[White "Rabby, Salim"]
[Black "Chigaev, Maksim"]
[Result "0-1"]
[ECO "E61"]
[WhiteElo "1931"]
[BlackElo "2622"]
[Annotator "TA"]
[PlyCount "68"]
[EventDate "2024.02.01"]
[EventCountry "BAN"]
[SourceTitle "playchess.com"]
[Source "ChessBase"]
[SourceQuality "1"]
[TimeControl "40/5400+30:1800+30"]

{[%evp 9,68,20,17,2,6,4,5,-31,-20,-31,-12,0,-1,-78,-78,-61,-60,-73,-75,-83,-59,-62,-54,-60,-70,-66,-48,-112,-108,-142,-139,-137,-146,-147,-144,-151,-160,-429,-406,-409,-345,-469,-329,-455,-448,-576,-566,-562,-567,-675,-668,-664,-660,-1035,-1034,-2031,-2074,-29990,-29991,-29992,-29993]} 1. d4 {[%emt 0:00:02]} Nf6 {[%emt 0:00:07]} 2. c4 {[%emt 0:00:08]} g6 {[%emt 0:00:06]} 3. Nc3 {[%emt 0:00:07]} Bg7 {[%emt 0:00:05]} 4. Bf4 {[%emt 1:32:13]} d6 {[%emt 0:00:56]} 5. Nf3 {[%emt 0:00:30]} O-O {[%emt 0:00:10]} 6. g3 {[%emt 0:00:30]} Bf5 {[%emt 0:03:48]} 7. Bg2 {[%emt 0:00:30]} Ne4 {[%emt 0:00:16]} 8. O-O {[%emt 0:00:00] The position is equal.} Nxc3 {[%emt 0:00:10]} 9. bxc3 {[%emt 0:00:00]} Be4 {[%emt 0:00:06]} 10. Qd2 {[%emt 0:00:00]} Nd7 {[%emt 0:00:28]} 11. Ng5 {[%emt 0:00:00]} (11. Qe3 $11 Nf6 12. g4) 11... Bxg2 $17 {[%emt 0:00:22]} 12. Kxg2 {[%emt 0:00:00]} e5 {[%emt 0:01:12]} 13. Be3 {[%emt 0:00:00]} Nb6 {[%emt 0:02:13]} 14. Qd3 {[%emt 0:00:00]} Qe8 {[%emt 0:00:29] Dodges a4} 15. d5 {[%emt 0:00:00]} h6 {[%emt 0:00:35]} 16. Ne4 {[%emt 0:00:00]} f5 {[%emt 0:00:09]} 17. Nd2 {[%emt 0:00:00]} Nd7 $36 {[%emt 1:27:48][%mdl 2048] Black is pushing.} 18. f4 {[%emt 0:00:00]} ({White should play} 18. f3 $15) 18... Qe7 {[%emt 0:00:00] Strongly threatening ...Rae8.} 19. Rae1 {[%emt 0:06:00]} Rae8 {[%emt 0:00:00]} 20. Bg1 {[%emt 0:00:00]} e4 {[%emt 0:01:30]} 21. Qc2 {[%emt 0:01:00] [#]} e3 $1 {[%emt 0:00:00]} 22. Nf3 {[%emt 0:00:00]} Qe4 {[%emt 0:00:00] Black is more active.} 23. Qa4 {[%emt 0:00:00]} (23. Qd3 $17 {was called for.}) 23... Nc5 $19 {[%emt 0:00:00]} 24. Qb4 {[%emt 0:00:00]} b6 {[%emt 0:00:00]} 25. Rc1 {[%emt 0:00:00]} a5 {[%emt 0:02:30]} 26. Qb5 {[%emt 0:00:00]} g5 {[%emt 0:00:30]} 27. fxg5 {[%emt 0:00:00]} hxg5 {[%emt 0:00:00]} 28. Qb1 {[%emt 0:00:00]} Qxc4 {[%emt 0:01:00]} 29. Nxg5 {[%emt 0:00:00]} Qxe2+ {[%emt 0:00:00]} 30. Kh1 {[%emt 0:00:00]} Qg4 {[%emt 0:00:00]} 31. h4 {[%emt 0:00:00]} e2 {[%emt 0:00:00]} 32. Rf4 {[%emt 0:00:00] Prevents Ne4.} Qxg3 {[%emt 0:00:00]} 33. Rxf5 {[%emt 0:00:00]} Qxh4+ {[%emt 0:00:00]} 34. Bh2 {[%emt 0:00:00]} e1=Q+ {[%emt 0:00:00] White did not feel at home in the position after the opening.   Weighted Error Value: White=0.98/Black=0.11 (very precise) .  Loses game:     	White=1     	---        Mistake:       	White=2     	---        Inaccurate:     	White=3     	---        OK:         	White=9     	Black=13     Best:        	White=1     	Black=1      Strong:       	---       	Black=1} 0-1

[Event "Bangabandhu Premier Div League 2023-24"]
[Site "Dhaka"]
[Date "2024.02.05"]
[Round "5.3"]
[White "Iniyan, Pa"]
[Black "Arpan Das"]
[Result "1-0"]
[ECO "D27"]
[WhiteElo "2515"]
[BlackElo "2367"]
[Annotator "TA"]
[PlyCount "59"]
[EventDate "2024.02.01"]
[EventCountry "BAN"]
[SourceTitle "playchess.com"]
[Source "ChessBase"]
[SourceQuality "1"]
[TimeControl "40/5400+30:1800+30"]

{[%evp 11,58,24,22,0,0,0,22,8,50,50,45,62,30,40,37,51,61,59,104,102,87,99,85,93,243,242,237,216,258,189,392,298,610,635,1053,1047,1456,1189,1475,1439,29986,29987,29991,29992,29996,29997,29998,29999,29999]} 1. d4 {[%emt 0:00:29]} d5 {[%emt 0:04:19]} 2. c4 {[%emt 0:00:03]} dxc4 {[%emt 0:00:06]} 3. Nf3 {[%emt 0:00:27]} Nf6 {[%emt 0:00:06]} 4. e3 {[%emt 0:00:09]} e6 {[%emt 0:00:08]} 5. Bxc4 {[%emt 0:00:09]} c5 {[%emt 0:00:05]} 6. O-O {[%emt 0:00:29]} a6 {[%emt 0:00:06]} 7. Re1 {[%emt 0:01:49]} b5 {[%emt 0:01:33]} 8. Bf1 {[%emt 1:30:55]} Nbd7 {[%emt 0:04:42]} 9. a4 {[%emt 0:00:30] The position is equal.} b4 {[%emt 0:07:21]} 10. e4 {[%emt 0:00:00][%cal Be3e4,Be4e5][%mdl 32]} cxd4 {[%emt 0:01:59]} 11. e5 {[%emt 0:00:00]} ({Of course not} 11. Qxd4 Bc5 12. Qd2 Bb7 $15) 11... Nd5 {[%emt 1:15:35]} 12. Nbd2 {[%emt 0:00:00]} Bb7 {[%emt 0:00:30]} 13. Nxd4 {[%emt 0:02:00]} Nc5 {[%emt 0:00:30]} 14. Nc4 {[%emt 0:00:00]} h6 {[%emt 0:00:30]} 15. Qg4 {[%emt 0:01:00][%cal Oc4d6]} g6 {[%emt 0:00:30]} 16. Qg3 {[%emt 0:00:30] White has more active pieces.} Be7 {[%emt 0:00:00]} 17. Bd2 {[%emt 0:00:30]} (17. Nd6+ {keeps more tension.} Bxd6 18. exd6 Qf6 19. Nf3) 17... Qd7 {[%emt 0:00:00] This move loses the game for Black.} (17... Kf8 $16 {is a better defense.}) 18. Nd6+ $18 {[%emt 0:00:30]} Bxd6 {[%emt 0:00:00]} 19. exd6 {[%emt 0:00:30]} Qd8 {[%emt 0:02:00]} 20. Bc4 {[%emt 0:00:00] [#] Threatens to win with Rac1.} Rc8 $2 {[%emt 0:00:30]} (20... Qf6) 21. Rac1 {[%emt 0:01:00]} Kd7 $2 {[%emt 0:00:30]} (21... Qf6) 22. Nf3 {[%emt 0:00:00][%cal Bd4f3,Bf3e5,Be5f7][%mdl 32]} Nf6 {[%emt 0:00:00]} 23. Bxb4 {[%emt 0:01:00] A strong pair of Bishops.} Nfe4 {[%emt 0:01:00]} 24. Qf4 {[%emt 0:00:00]} Ke8 {[%emt 0:00:30]} 25. Ne5 {[%emt 0:01:00][%csl Ge5][%cal Rf4f7]} Nxd6 {[%emt 0:00:00] [#]} 26. Nxf7 $1 {[%emt 0:00:00][%mdl 512] White mates.} Nxf7 {[%emt 0:00:00]} (26... Nde4 27. Nxd8) 27. Bxe6 {[%emt 0:00:00]} Nxe6 {[%emt 0:00:00]} 28. Rxe6+ {[%emt 0:00:00]} Kd7 {[%emt 0:00:00]} 29. Qxf7+ {[%emt 0:00:00]} Qe7 {[%emt 0:00:00]} 30. Qxe7# {[%emt 0:02:30] Weighted Error Value: White=0.14 (very precise) /Black=0.78.  Mistake:       	---       	Black=3      Inaccurate:     	---       	Black=3      OK:         	White=7     	Black=5      Best:        	White=1     	---} 1-0

[Event "Bangabandhu Premier Div League 2023-24"]
[Site "Dhaka"]
[Date "2024.02.05"]
[Round "5.3"]
[White "Hasan Md, Emam"]
[Black "Narayanan, Srinath"]
[Result "0-1"]
[ECO "C70"]
[WhiteElo "2053"]
[BlackElo "2552"]
[Annotator "RC"]
[PlyCount "208"]
[EventDate "2024.02.01"]
[EventCountry "BAN"]
[SourceTitle "playchess.com"]
[Source "ChessBase"]
[SourceQuality "1"]
[TimeControl "40/5400+30:1800+30"]

1. e4 {[%emt 0:00:11]} e5 {[%emt 0:00:14]} 2. Nf3 {[%emt 0:00:08]} Nc6 {[%emt 0:00:06]} 3. Bb5 {[%emt 0:00:19]} a6 {[%emt 0:00:24]} 4. Ba4 {[%emt 0:00:03]} Bc5 {[%emt 0:00:18]} 5. O-O {[%emt 0:00:12]} d6 {[%emt 0:00:13]} 6. c3 {[%emt 0:00:27]} Bg4 {[%emt 0:00:15]} 7. d3 {[%emt 0:00:18]} Nge7 {[%emt 0:00:42]} 8. Be3 {[%emt 0:02:51]} O-O {[%emt 0:05:46]} 9. h3 {[%emt 0:03:46]} Bh5 {[%emt 0:00:12]} 10. g4 {[%emt 0:01:09]} Bg6 {[%emt 0:03:03]} 11. Qe2 {[%emt 0:02:30]} Ba7 {[%emt 0:05:13]} 12. Nbd2 {[%emt 0:01:27]} d5 {[%emt 0:04:45]} 13. Bxa7 {[%emt 0:01:19]} Rxa7 {[%emt 0:00:06]} 14. Nh4 {[%emt 0:02:03]} Ra8 {[%emt 0:02:51]} 15. Ndf3 {[%emt 0:07:50]} Kh8 {[%emt 0:02:50]} 16. Rad1 {[%emt 0:00:49]} f6 {[%emt 0:00:57]} 17. Bc2 {[%emt 0:04:02]} d4 {[%emt 0:00:48]} 18. cxd4 {[%emt 0:00:55]} Nxd4 {[%emt 1:10:47]} 19. Nxd4 {[%emt 0:00:04]} Qxd4 {[%emt 0:00:00]} 20. Bb1 {[%emt 0:01:14]} c5 {[%emt 0:00:00]} 21. Kg2 {[%emt 0:04:08]} b6 {[%emt 0:00:00]} 22. f4 {[%emt 0:01:19]} exf4 {[%emt 0:00:00]} 23. Rxf4 {[%emt 0:00:12]} Rfe8 {[%emt 0:00:00]} 24. Rf2 {[%emt 1:05:14]} Rad8 {[%emt 0:00:00]} 25. Re1 {[%emt 0:00:00]} Nc6 {[%emt 0:00:00]} 26. g5 {[%emt 0:00:00]} Ne5 {[%emt 0:00:00]} 27. gxf6 {[%emt 0:00:00]} gxf6 {[%emt 0:00:00]} 28. Ref1 {[%emt 0:00:00]} Rg8 {[%emt 0:00:00]} 29. Kh2 {[%emt 0:00:00]} Qd6 {[%emt 0:00:00]} 30. Kh1 {[%emt 0:00:00]} Rdf8 {[%emt 0:00:00]} 31. Rg2 {[%emt 0:00:00]} Qd8 {[%emt 0:00:00]} 32. Rfg1 {[%emt 0:00:00]} Bf7 {[%emt 0:00:00]} 33. b3 {[%emt 0:00:00]} Rxg2 {[%emt 0:00:00]} 34. Rxg2 {[%emt 0:00:00]} Rg8 {[%emt 0:00:00]} 35. Nf5 {[%emt 0:00:00]} Be6 {[%emt 0:00:00]} 36. Qh5 {[%emt 0:00:00]} Rxg2 {[%emt 0:00:00]} 37. Kxg2 {[%emt 0:00:00]} Bxf5 {[%emt 0:00:00]} 38. Qxf5 {[%emt 0:00:00]} Kg7 {[%emt 0:00:00]} 39. Qf2 {[%emt 0:00:00]} Qd6 {[%emt 0:00:00]} 40. Qg3+ {[%emt 0:00:00]} Kh8 {[%emt 0:00:00]} 41. Qf4 {[%emt 0:16:15]} Qf8 {[%emt 0:18:05]} 42. Bc2 {[%emt 0:01:51]} Qg7+ {[%emt 0:01:16]} 43. Kf2 {[%emt 0:00:14]} a5 {[%emt 0:03:04]} 44. Qf5 {[%emt 0:21:40]} Qg5 {[%emt 0:20:35]} 45. Qxg5 {[%emt 0:00:00]} fxg5 {[%emt 0:00:30]} 46. Ke3 {[%emt 0:00:00]} Nc6 {[%emt 0:00:30]} 47. Bd1 {[%emt 0:00:00]} Kg7 {[%emt 0:00:00]} 48. a4 {[%emt 0:00:00]} Kf6 {[%emt 0:00:00]} 49. Kd2 {[%emt 0:02:30]} Ke5 {[%emt 0:00:00]} 50. Kc3 {[%emt 0:00:00]} Kd6 {[%emt 0:00:00]} 51. Kc4 {[%emt 0:00:00]} Nd4 {[%emt 0:00:00]} 52. Bg4 {[%emt 0:00:00]} h6 {[%emt 0:00:00]} 53. Bh5 {[%emt 0:00:00]} Ke6 {[%emt 0:00:00]} 54. Bg4+ {[%emt 0:00:00]} Ke5 {[%emt 0:00:00]} 55. Bd1 {[%emt 0:00:00]} Ke6 {[%emt 0:00:00]} 56. Bg4+ {[%emt 0:00:00]} Kd6 {[%emt 0:00:00]} 57. Bh5 {[%emt 0:00:00]} Ne6 {[%emt 0:00:00]} 58. Bg4 {[%emt 0:00:46]} Nf4 {[%emt 0:00:00]} 59. d4 {[%emt 0:00:38]} cxd4 {[%emt 0:00:00]} 60. Kxd4 {[%emt 0:00:02]} Ne6+ {[%emt 0:00:00]} 61. Kc4 {[%emt 0:02:41]} Nc5 {[%emt 0:07:30]} 62. Bf3 {[%emt 0:00:00]} Ne6 {[%emt 0:00:00]} 63. Bd1 {[%emt 0:00:00]} Nf4 {[%emt 0:00:00]} 64. Bg4 {[%emt 0:00:00]} h5 {[%emt 0:00:00]} 65. Bf5 {[%emt 0:03:53]} Ne2 {[%emt 0:00:00]} 66. Bg6 {[%emt 0:00:00]} h4 {[%emt 0:00:00]} 67. Bh5 {[%emt 0:00:00]} Nf4 {[%emt 0:00:00]} 68. Bg4 {[%emt 0:00:00]} Ng6 {[%emt 0:00:00]} 69. Kb5 {[%emt 0:02:00]} Kc7 {[%emt 0:00:00]} 70. Bd1 {[%emt 0:00:00]} Ne5 {[%emt 0:00:00]} 71. Be2 {[%emt 0:00:00]} g4 {[%emt 0:00:00]} 72. hxg4 {[%emt 0:00:00]} h3 {[%emt 0:00:00]} 73. Bf1 {[%emt 0:00:00]} h2 {[%emt 0:00:00]} 74. Bg2 {[%emt 0:00:00]} Nxg4 {[%emt 0:00:00]} 75. b4 {[%emt 0:00:00]} axb4 {[%emt 0:00:00]} 76. Kxb4 {[%emt 0:00:00]} Ne5 {[%emt 0:00:00]} 77. Kb5 {[%emt 0:00:00]} Nc6 {[%emt 0:00:00]} 78. Bh1 {[%emt 0:00:00]} Na7+ {[%emt 0:00:00]} 79. Ka6 {[%emt 0:00:00]} Nc6 {[%emt 0:00:00]} 80. Kb5 {[%emt 0:00:00]} Nd4+ {[%emt 0:00:00]} 81. Kc4 {[%emt 0:06:00]} Ne2 {[%emt 0:00:00]} 82. Kb5 {[%emt 0:00:00]} Nc3+ {[%emt 0:10:30]} 83. Kb4 {[%emt 0:00:00]} Nd1 {[%emt 0:00:00]} 84. Kb5 {[%emt 0:00:00]} Nf2 {[%emt 0:00:00]} 85. Bg2 {[%emt 0:00:00]} Ng4 {[%emt 0:00:00]} 86. a5 {[%emt 0:00:00]} bxa5 {[%emt 0:00:00]} 87. Kxa5 {[%emt 0:00:00]} Kd6 {[%emt 0:00:00]} 88. Kb4 {[%emt 0:00:00]} Ke5 {[%emt 0:00:00]} 89. Kc3 {[%emt 0:00:00]} Kf4 {[%emt 0:00:00]} 90. Kd4 {[%emt 0:00:00]} Kg3 {[%emt 0:00:00]} 91. Bh1 {[%emt 0:00:00]} Nf2 {[%emt 0:00:00]} 92. e5 {[%emt 0:00:00]} Nxh1 {[%emt 0:00:00]} 93. e6 {[%emt 0:00:00]} Nf2 {[%emt 0:00:00]} 94. e7 {[%emt 0:00:00]} h1=Q {[%emt 0:00:00]} 95. e8=Q {[%emt 0:00:00]} Qd1+ {[%emt 0:00:00]} 96. Kc5 {[%emt 0:00:00]} Nd3+ {[%emt 0:00:00]} 97. Kb6 {[%emt 0:00:00]} Qg1+ {[%emt 0:07:30]} 98. Kc7 {[%emt 0:00:00]} Qa7+ {[%emt 0:00:00]} 99. Kd8 {[%emt 0:00:00]} Qb8+ {[%emt 0:00:00]} 100. Ke7 {[%emt 0:00:00]} Qb4+ {[%emt 0:00:00]} 101. Kd8 {[%emt 0:00:00]} Qa5+ {[%emt 0:00:00]} 102. Ke7 {[%emt 0:00:00]} Ne5 {[%emt 0:00:00]} 103. Qg8+ {[%emt 0:02:16]} Kf4 {[%emt 0:00:00]} 104. Qg1 {[%emt 0:00:50]} Qc7+ {[%emt 0:00:00]} 0-1